bitfinex/quotes_BTCUSD_20250727
["timestamp","ask_amount","ask_price","bid_price","bid_amount"]
[1753658722945,0.003,119650.0,119640.0,0.71935296]
[1753658725357,0.003,119650.0,119640.0,0.36678253]
[1753658725569,0.003,119650.0,119640.0,0.70295296]
[1753658725992,0.00505,119650.0,119640.0,0.68765296]
[1753658726617,0.00505,119650.0,119640.0,0.70275296]
[1753658726834,0.003,119650.0,119640.0,0.70275296]
[1753658727695,0.003,119650.0,119640.0,0.70263296]
[1753658730997,0.003,119650.0,119640.0,0.57295296]
[1753658731407,0.003,119650.0,119640.0,0.70251296]
[1753658731622,0.003,119650.0,119640.0,0.71771296]
[1753658732038,0.003,119650.0,119640.0,0.38154253]
[1753658732248,0.003,119650.0,119640.0,0.71771296]
[1753658732890,0.003,119650.0,119640.0,0.58815296]
[1753658733323,0.003,119650.0,119640.0,0.71767296]
[1753658733760,0.003,119650.0,119640.0,0.38150253]
[1753658733969,0.003,119650.0,119640.0,0.58815296]
[1753658734195,0.003,119650.0,119640.0,0.71767296]
[1753658734906,0.003,119650.0,119640.0,0.58815296]
[1753658735318,0.003,119650.0,119640.0,0.71771296]
[1753658740436,0.003,119650.0,119640.0,1.05388339]
[1753658741702,0.003,119650.0,119640.0,0.71771296]
[1753658745203,0.003,119650.0,119640.0,0.38154253]
[1753658745439,0.003,119650.0,119640.0,0.36634253]
[1753658745683,0.003,119650.0,119640.0,0.70251296]
[1753658747728,0.003,119650.0,119640.0,0.71811296]
[1753658750980,0.003,119650.0,119640.0,0.70251296]
[1753658757753,0.003,119650.0,119640.0,0.68737296]
[1753658758887,0.04735,119650.0,119640.0,0.65793296]
[1753658759164,0.06335,119650.0,119640.0,0.65793296]
[1753658759334,0.04735,119650.0,119640.0,0.65793296]
[1753658759488,0.02111,119650.0,119640.0,0.68379296]
[1753658759725,0.02111,119650.0,119640.0,0.68693296]
[1753658762386,0.003,119650.0,119640.0,1.02310339]
[1753658762587,0.003,119650.0,119640.0,1.16410339]
[1753658762735,0.003,119650.0,119640.0,1.05410339]
[1753658765860,0.003,119650.0,119640.0,1.05406339]
[1753658766070,0.003,119650.0,119640.0,1.03886339]
[1753658775536,0.003,119650.0,119640.0,0.90938339]
[1753658775737,0.003,119650.0,119640.0,1.03886339]
[1753658778438,0.0165,119670.0,119660.0,0.52838085]
[1753658778662,0.05814,119680.0,119670.0,0.19219435]
[1753658778850,0.14477308,119680.0,119670.0,0.65784478]
[1753658781796,0.168625,119680.0,119670.0,0.65784478]
[1753658782020,0.169625,119680.0,119670.0,0.32167435]
[1753658782541,0.14577308,119680.0,119670.0,0.32167435]
[1753658783339,0.11953308,119680.0,119670.0,0.68168478]
[1753658784168,0.10303308,119680.0,119670.0,0.68168478]
[1753658784412,0.10303308,119680.0,119670.0,0.34551435]
[1753658785140,0.14507308,119680.0,119670.0,0.32163435]
[1753658790331,0.14515309,119680.0,119670.0,0.32163435]
[1753658790560,0.11891309,119680.0,119670.0,0.32163435]
[1753658790772,0.11891309,119680.0,119670.0,0.34636435]
[1753658791225,0.13958196,119680.0,119670.0,0.34636435]
[1753658795304,0.13958196,119680.0,119670.0,0.34846435]
[1753658796698,0.13958196,119680.0,119670.0,0.34636435]
[1753658796915,0.13958196,119680.0,119670.0,0.34632435]
[1753658797786,0.13958196,119680.0,119670.0,0.34842435]
[1753658798252,0.12378196,119680.0,119670.0,0.35158435]
[1753658802412,0.12378196,119680.0,119670.0,0.55835478]
[1753658802615,0.0250676,119670.0,119660.0,0.2002271]
[1753658802822,0.4130027,119670.0,119660.0,0.32161028]
[1753658803296,0.40464695,119670.0,119660.0,0.32161028]
[1753658803705,0.40464695,119670.0,119660.0,0.32157028]
[1753658803839,0.42235894,119670.0,119660.0,0.31325404]
[1753658804042,0.42235894,119670.0,119660.0,0.31325411]
[1753658804725,0.42235894,119670.0,119660.0,0.32161091]
[1753658804938,0.50625573,119670.0,119660.0,0.31325411]
[1753658805107,0.49789963,119670.0,119660.0,0.32161091]
[1753658805350,0.50625573,119670.0,119660.0,0.31325411]
[1753658805565,0.51461197,119670.0,119660.0,0.31321418]
[1753658805983,0.50625573,119670.0,119660.0,0.32157105]
[1753658806198,0.51461197,119670.0,119660.0,0.18385418]
[1753658806418,0.50625573,119670.0,119660.0,0.18385418]
[1753658806645,0.50625573,119670.0,119660.0,0.19221105]
[1753658806900,0.51461197,119670.0,119660.0,0.17549724]
[1753658807136,0.16230887,119670.0,119660.0,0.18385404]
[1753658807317,0.1706649,119670.0,119660.0,0.19221077]
[1753658807550,0.16230887,119670.0,119660.0,0.19221077]
[1753658807838,0.179021,119670.0,119660.0,0.18385411]
[1753658808079,1.03009433,119670.0,119650.0,0.19187167]
[1753658808306,0.47683783,119660.0,119650.0,0.30485937]
[1753658808524,0.39677173,119650.0,119640.0,0.31324476]
[1753658808751,0.83563493,119650.0,119640.0,0.3132449]
[1753658808972,0.86187493,119650.0,119640.0,0.3048865]
[1753658809200,0.50121167,119650.0,119640.0,0.32160281]
[1753658809452,0.4844973,119650.0,119640.0,0.32996079]
[1753658809680,0.4582573,119650.0,119640.0,0.3630487]
[1753658810800,0.46661452,119650.0,119640.0,0.3630487]
[1753658811267,0.46661445,119650.0,119640.0,0.3630487]
[1753658811488,0.4582573,119650.0,119640.0,0.3630487]
[1753658812754,0.47497153,119650.0,119640.0,0.3630487]
[1753658813153,0.4582573,119650.0,119640.0,0.3651487]
[1753658813389,0.4582573,119650.0,119640.0,0.3683087]
[1753658816474,0.46661445,119650.0,119640.0,0.3683087]
[1753658816667,0.4582573,119650.0,119640.0,0.3683087]
[1753658817273,0.46661445,119650.0,119640.0,0.3683087]
[1753658817489,0.46661445,119650.0,119640.0,0.35995079]
[1753658817696,0.47497167,119650.0,119640.0,0.34007476]
[1753658817890,1.02254169,119650.0,119640.0,0.16716817]
[1753658818088,1.02254169,119650.0,119640.0,0.29652817]
[1753658818286,1.02254224,119650.0,119640.0,0.29652817]
[1753658818749,0.85538805,119650.0,119640.0,0.29652817]
[1753658818889,1.02254224,119650.0,119640.0,0.29652817]
[1753658819516,1.02254224,119650.0,119640.0,0.30488657]
[1753658819711,1.02254224,119650.0,119640.0,0.29652817]
[1753658819925,1.02254224,119650.0,119640.0,0.16716817]
[1753658820300,1.02254224,119650.0,119640.0,0.17552657]
[1753658820720,0.83867271,119650.0,119640.0,0.18388476]
[1753658820926,0.84703021,119650.0,119640.0,0.18388476]
[1753658821098,0.85538785,119650.0,119640.0,0.1838849]
[1753658821729,0.85538785,119650.0,119640.0,0.17552657]
[1753658821944,0.85538785,119650.0,119640.0,0.1838849]
[1753658822693,0.85538785,119650.0,119640.0,0.17552657]
[1753658823725,0.86374555,119650.0,119640.0,0.17552657]
[1753658823936,0.85538785,119650.0,119640.0,0.17552657]
[1753658824140,0.84703021,119650.0,119640.0,0.1838849]
[1753658824354,0.85538785,119650.0,119640.0,0.1838849]
[1753658825236,0.85538785,119650.0,119640.0,0.16716817]
[1753658825441,1.02254204,119650.0,119640.0,0.16716817]
[1753658826386,0.21518448,119640.0,119630.0,0.16718214]
[1753658826620,0.98438033,119640.0,119630.0,0.17554124]
[1753658826843,0.98438033,119640.0,119630.0,0.18390027]
[1753658827544,0.64043124,119640.0,119630.0,0.19225916]
[1753658827760,0.98438033,119640.0,119630.0,0.18390027]
[1753658828215,1.1515485,119640.0,119630.0,0.17554124]
[1753658828442,0.98438033,119640.0,119630.0,0.16718214]
[1753658828673,0.98438033,119640.0,119630.0,0.17554124]
[1753658828674,0.99273873,119640.0,119630.0,0.17554124]
[1753658828869,0.98538033,119640.0,119630.0,0.18390027]
[1753658829146,0.977022,119640.0,119630.0,0.18390027]
[1753658829363,0.98538033,119640.0,119630.0,0.18390027]
[1753658829818,0.98538033,119640.0,119630.0,0.17554124]
[1753658829995,0.98538033,119640.0,119630.0,0.18390027]
[1753658830216,1.1525485,119640.0,119630.0,0.16718214]
[1753658830422,1.14419073,119640.0,119630.0,0.16718214]
[1753658830643,1.12857456,119640.0,119630.0,0.16718214]
[1753658833432,1.12857456,119640.0,119620.0,0.33049592]
[1753658833640,0.93730612,119630.0,119620.0,0.29959739]
[1753658833853,0.98949216,119630.0,119620.0,0.17027739]
[1753658834289,1.1566743,119630.0,119620.0,0.19289739]
[1753658834510,1.14310708,119630.0,119620.0,0.17027739]
[1753658834726,0.96756584,119630.0,119620.0,0.17863712]
[1753658835154,0.96441584,119630.0,119620.0,0.20225712]
[1753658835371,0.94781487,119630.0,119620.0,0.20225712]
[1753658835580,0.97277487,119630.0,119620.0,0.20225712]
[1753658835789,0.96441549,119630.0,119620.0,0.20225712]
[1753658836013,0.59550591,119630.0,119620.0,0.21061671]
[1753658836221,0.59722362,119630.0,119620.0,0.21573678]
[1753658836427,0.59722362,119630.0,119620.0,0.22409637]
[1753658836650,0.59722355,119630.0,119620.0,0.22409637]
[1753658837877,0.58886466,119630.0,119620.0,0.22409637]
[1753658838005,0.58886466,119630.0,119620.0,0.23245589]
[1753658838423,0.59722355,119630.0,119620.0,0.22409637]
[1753658838859,0.59722355,119630.0,119620.0,0.23245589]
[1753658839066,0.58886466,119630.0,119620.0,0.23245589]
[1753658839497,0.58886466,119630.0,119620.0,0.24081534]
[1753658839695,0.58886466,119630.0,119620.0,0.24081499]
[1753658839918,0.58886466,119630.0,119620.0,0.22409616]
[1753658840130,0.58886466,119630.0,119620.0,0.21573664]
[1753658840343,0.58886466,119630.0,119620.0,0.22409616]
[1753658840791,0.59722355,119630.0,119620.0,0.21573664]
[1753658841424,0.58886466,119630.0,119620.0,0.22409616]
[1753658841882,0.59722348,119630.0,119620.0,0.22409616]
[1753658842079,0.58050591,119630.0,119620.0,0.23245561]
[1753658842305,0.5537973,119630.0,119620.0,0.25631492]
[1753658842748,0.56215577,119630.0,119620.0,0.25631492]
[1753658842967,0.5537973,119630.0,119620.0,0.25631492]
[1753658843821,0.57051452,119630.0,119620.0,0.25631492]
[1753658844228,0.55315584,119630.0,119620.0,0.23981492]
[1753658844506,0.2147973,119630.0,119620.0,0.23981492]
[1753658844743,0.2137973,119630.0,119620.0,0.23981492]
[1753658844978,0.2147973,119630.0,119620.0,0.25531492]
[1753658845418,0.2147973,119630.0,119620.0,0.59090568]
[1753658845646,0.2147973,119630.0,119620.0,0.25531492]
[1753658846273,0.2137973,119630.0,119620.0,0.25531492]
[1753658846757,0.2147973,119630.0,119620.0,0.25531492]
[1753658847217,0.2137973,119630.0,119620.0,0.25531492]
[1753658847466,0.2147973,119630.0,119620.0,0.25531492]
[1753658847719,0.22315577,119630.0,119620.0,0.25531492]
[1753658848878,0.23151438,119630.0,119620.0,0.25531492]
[1753658849543,0.22315577,119630.0,119620.0,0.25531492]
[1753658849729,0.23151438,119630.0,119620.0,0.25531492]
[1753658850985,0.22311577,119630.0,119620.0,0.25531492]
[1753658851234,0.23147431,119630.0,119620.0,0.25531492]
[1753658852804,0.23147431,119630.0,119620.0,0.50713619]
[1753658853015,0.23047431,119630.0,119620.0,0.50713619]
[1753658853231,0.23883292,119630.0,119620.0,0.50713619]
[1753658853457,0.22311577,119630.0,119620.0,0.50713619]
[1753658853679,0.2147573,119630.0,119620.0,0.50713619]
[1753658853901,0.2137573,119630.0,119620.0,0.50713619]
[1753658854583,0.2137573,119630.0,119620.0,0.50813619]
[1753658857418,0.2137573,119630.0,119620.0,0.25631492]
[1753658857649,0.2137573,119630.0,119620.0,0.50813619]
[1753658859201,0.22211584,119630.0,119620.0,0.50813619]
[1753658859424,0.2137573,119630.0,119620.0,0.50813619]
[1753658859645,0.22211584,119630.0,119620.0,0.50813619]
[1753658859860,0.22211577,119630.0,119620.0,0.50813619]
[1753658860327,0.2137573,119630.0,119620.0,0.50813619]
[1753658860548,0.22211577,119630.0,119620.0,0.50813619]
[1753658861409,0.23047431,119630.0,119620.0,0.50813619]
[1753658861830,0.23047431,119630.0,119620.0,0.50713619]
[1753658862036,0.23883299,119630.0,119620.0,0.50713626]
[1753658862256,0.23047431,119630.0,119620.0,0.49977674]
[1753658862464,0.2137573,119630.0,119620.0,0.49977674]
[1753658863162,0.2137573,119630.0,119620.0,0.50077674]
[1753658864648,0.2137573,119630.0,119620.0,0.49977674]
[1753658864877,0.2137573,119630.0,119620.0,0.50177674]
[1753658865954,0.2137573,119630.0,119620.0,0.24995547]
[1753658866151,0.2137573,119630.0,119620.0,0.50177674]
[1753658866366,0.2137573,119630.0,119620.0,0.24995547]
[1753658866587,0.2137573,119630.0,119620.0,0.50177674]
[1753658869490,0.2137573,119630.0,119620.0,0.24995547]
[1753658869679,0.2137573,119630.0,119620.0,0.50177674]
[1753658872179,0.2137573,119630.0,119620.0,0.50185674]
[1753658872617,0.22211577,119630.0,119620.0,0.50185674]
[1753658873264,0.24936195,119630.0,119620.0,0.21467664]
[1753658873470,0.24936195,119630.0,119620.0,0.22303616]
[1753658873692,0.51728315,119630.0,119620.0,0.22303616]
[1753658873900,0.51728315,119630.0,119620.0,0.22105616]
[1753658874997,0.25710306,119630.0,119620.0,0.22941554]
[1753658875216,0.50892426,119630.0,119620.0,0.22941554]
[1753658875465,0.24874431,119630.0,119620.0,0.23777485]
[1753658875674,0.25710299,119630.0,119620.0,0.23777499]
[1753658876296,0.25710299,119630.0,119620.0,0.22941561]
[1753658876710,0.26546188,119630.0,119620.0,0.22105616]
[1753658876886,0.26546181,119630.0,119620.0,0.22105616]
[1753658877204,0.26546181,119630.0,119620.0,0.22941561]
[1753658877399,0.51728308,119630.0,119620.0,0.22105616]
[1753658877835,0.51728308,119630.0,119620.0,0.22941561]
[1753658878494,0.51728308,119630.0,119620.0,0.22105616]
[1753658878711,0.27382077,119630.0,119620.0,0.20433705]
[1753658878922,0.26546181,119630.0,119620.0,0.2126965]
[1753658879352,0.26546181,119630.0,119620.0,0.22105602]
[1753658879711,0.26546181,119630.0,119620.0,0.21269657]
[1753658880299,0.25710299,119630.0,119620.0,0.22105602]
[1753658880517,0.51728315,119630.0,119620.0,0.21269664]
[1753658880743,0.51728308,119630.0,119620.0,0.21269664]
[1753658880880,0.51728308,119630.0,119620.0,0.22105616]
[1753658881538,0.26546174,119630.0,119620.0,0.22941561]
[1753658881741,0.26546174,119630.0,119620.0,0.22105616]
[1753658881959,0.23264431,119630.0,119620.0,0.48123674]
[1753658882166,0.23264431,119630.0,119620.0,0.48334674]
[1753658882380,0.23264431,119630.0,119620.0,0.48633674]
[1753658883584,0.23264431,119630.0,119620.0,0.23451547]
[1753658883792,0.23264431,119630.0,119620.0,0.48633674]
[1753658884608,0.24936188,119630.0,119620.0,0.22615616]
[1753658884802,0.24936181,119630.0,119620.0,0.23451561]
[1753658885006,0.24100299,119630.0,119620.0,0.23451561]
[1753658885410,0.24100299,119630.0,119620.0,0.22615616]
[1753658885645,0.2577207,119630.0,119620.0,0.21779664]
[1753658885896,0.50922426,119630.0,119620.0,0.23152554]
[1753658886350,0.50922426,119630.0,119620.0,0.22316616]
[1753658886528,0.50922426,119630.0,119620.0,0.23152561]
[1753658886760,0.51758301,119630.0,119620.0,0.23152561]
[1753658886957,0.24904431,119630.0,119620.0,0.23152561]
[1753658887183,0.24100292,119630.0,119620.0,0.24287492]
[1753658887388,0.24100292,119630.0,119620.0,0.23451561]
[1753658887581,0.24936167,119630.0,119620.0,0.24287499]
[1753658887788,0.24100292,119630.0,119620.0,0.24287499]
[1753658888251,0.24084292,119630.0,119620.0,0.24287464]
[1753658888450,0.22412577,119630.0,119620.0,0.49469591]
[1753658888865,0.2135973,119630.0,119620.0,0.49469591]
[1753658889069,0.2135973,119630.0,119620.0,0.51069591]
[1753658889268,0.22195591,119630.0,119620.0,0.25051533]
[1753658889440,0.22195591,119630.0,119620.0,0.5023366]
[1753658889775,0.22195584,119630.0,119620.0,0.51069591]
[1753658890561,0.22195584,119630.0,119620.0,0.25887464]
[1753658890805,0.22195584,119630.0,119620.0,0.51069591]
[1753658891473,0.23867334,119630.0,119620.0,0.49397722]
[1753658891698,0.23031452,119630.0,119620.0,0.48561777]
[1753658891924,1.28489983,119630.0,119620.0,0.00616127]
[1753658892148,6.30129983,119630.0,119620.0,0.00616127]
[1753658892374,6.70129983,119630.0,119620.0,0.00616127]
[1753658892593,6.04947856,119630.0,119620.0,0.00616127]
[1753658892823,6.30129983,119630.0,119620.0,0.00616127]
[1753658893049,6.04947856,119630.0,119620.0,0.00616127]
[1753658893491,5.79765729,119630.0,119620.0,0.17335739]
[1753658893707,6.04947856,119630.0,119620.0,0.17235739]
[1753658894143,6.04211967,119630.0,119620.0,0.17235739]
[1753658894365,6.04211967,119630.0,119620.0,0.17035739]
[1753658894828,6.04211967,119630.0,119620.0,0.00316127]
[1753658896108,5.7902984,119630.0,119620.0,0.00316127]
[1753658896321,6.04211967,119630.0,119620.0,0.00316127]
[1753658896539,6.04211967,119630.0,119620.0,0.17035739]
[1753658896962,6.04211967,119630.0,119620.0,0.00316127]
[1753658899819,6.29394094,119630.0,119620.0,0.00316127]
[1753658903746,1.29394094,119630.0,119620.0,0.00316127]
[1753658903979,6.29394094,119630.0,119620.0,0.00316127]
[1753658905757,5.7902984,119630.0,119620.0,0.00316127]
[1753658906009,6.29394094,119630.0,119620.0,0.00316127]
[1753658906443,6.29294094,119630.0,119620.0,0.00316127]
[1753658906895,6.29394094,119630.0,119620.0,0.00316127]
[1753658907556,6.69394094,119630.0,119620.0,0.00316127]
[1753658908204,6.29394094,119630.0,119620.0,0.00316127]
[1753658909336,6.31906094,119630.0,119620.0,0.00316127]
[1753658911264,6.32685762,119630.0,119620.0,0.00316127]
[1753658911885,6.32685724,119630.0,119620.0,0.00316127]
[1753658912624,5.8232147,119630.0,119620.0,0.00316127]
[1753658912844,6.32685724,119630.0,119620.0,0.00316127]
[1753658913514,5.8232147,119630.0,119620.0,0.00316127]
[1753658913733,6.32685724,119630.0,119620.0,0.00316127]
[1753658914244,1.32685724,119630.0,119620.0,0.00316127]
[1753658914454,6.32685724,119630.0,119620.0,0.00316127]
[1753658917279,6.32585724,119630.0,119620.0,0.00316127]
[1753658917500,6.32685724,119630.0,119620.0,0.00316127]
[1753658917827,6.35219167,119630.0,119620.0,0.00316127]
[1753658918626,6.35119167,119630.0,119620.0,0.00316127]
[1753658919050,6.35219167,119630.0,119620.0,0.00316127]
[1753658923607,5.84854913,119630.0,119620.0,0.00316127]
[1753658923821,6.35219167,119630.0,119620.0,0.00316127]
[1753658924522,5.84854913,119630.0,119620.0,0.00316127]
[1753658924749,6.35219167,119630.0,119620.0,0.00316127]
[1753658925646,6.35119167,119630.0,119620.0,0.00316127]
[1753658926090,6.35219167,119630.0,119620.0,0.00316127]
[1753658926328,6.1003704,119630.0,119620.0,0.00316127]
[1753658926580,6.0993704,119630.0,119620.0,0.00316127]
[1753658926778,1.0993704,119630.0,119620.0,0.00316127]
[1753658926917,6.0993704,119630.0,119620.0,0.00316127]
[1753658927750,6.0993704,119630.0,119620.0,0.00416127]
[1753658931870,6.36864069,119630.0,119620.0,0.00416127]
[1753658932090,6.84192434,119630.0,119620.0,0.00416127]
[1753658932312,6.89629599,119630.0,119620.0,0.00416127]
[1753658933231,6.89729599,119630.0,119620.0,0.00416127]
[1753658933667,6.89729599,119630.0,119620.0,0.00408127]
[1753658933886,7.49639599,119630.0,119620.0,0.00416127]
[1753658934331,7.49639599,119630.0,119620.0,0.00316127]
[1753658934984,7.49539599,119630.0,119620.0,0.00316127]
[1753658935195,7.49539242,119630.0,119620.0,0.00316127]
[1753658935408,7.49839242,119630.0,119620.0,0.00316127]
[1753658939475,7.04929242,119630.0,119620.0,0.00316127]
[1753658940536,7.04928853,119630.0,119620.0,0.00316127]
[1753658940950,7.04928666,119630.0,119620.0,0.00316127]
[1753658943186,0.1839306,119610.0,119600.0,0.02696]
[1753658943404,6.54382073,119610.0,119600.0,0.02696]
[1753658943618,6.72620075,119610.0,119600.0,0.003]
[1753658943867,6.77920075,119610.0,119600.0,0.003]
[1753658944750,6.78020075,119610.0,119600.0,0.003]
[1753658946702,1.78020075,119610.0,119600.0,0.003]
[1753658946906,6.78020075,119610.0,119600.0,0.003]
[1753658947311,6.78457312,119610.0,119600.0,0.003]
[1753658947597,6.78357312,119610.0,119600.0,0.003]
[1753658948047,6.8277831,119610.0,119600.0,0.003]
[1753658948272,6.83556848,119610.0,119600.0,0.003]
[1753658949348,6.98556848,119610.0,119600.0,0.003]
[1753658949577,6.98556726,119610.0,119600.0,0.003]
[1753658950246,6.98556689,119610.0,119600.0,0.003]
[1753658954485,7.00952689,119610.0,119600.0,0.003]
[1753658955536,7.02509321,119610.0,119600.0,0.003]
[1753658955705,7.78055702,119610.0,119600.0,0.003]
[1753658955913,7.78055702,119610.0,119600.0,1e-08]
[1753658956293,2.03093083,119610.0,119600.0,1e-08]
[1753658956499,7.03093083,119610.0,119600.0,1e-08]
[1753658957301,7.78639464,119610.0,119600.0,1e-08]
[1753658957710,7.03093083,119610.0,119600.0,1e-08]
[1753658958144,7.78639464,119610.0,119600.0,1e-08]
[1753658958987,7.03093083,119610.0,119600.0,1e-08]
[1753658961368,7.01536713,119610.0,119600.0,1e-08]
[1753658961574,7.03094223,119610.0,119600.0,1e-08]
[1753658962027,8.08640604,119610.0,119600.0,1e-08]
[1753658962922,7.33094223,119610.0,119600.0,1e-08]
[1753658963130,7.33294223,119610.0,119600.0,1e-08]
[1753658963830,7.33094223,119610.0,119600.0,1e-08]
[1753658964096,8.08840604,119610.0,119600.0,1e-08]
[1753658965432,8.08062267,119610.0,119600.0,1e-08]
[1753658965666,8.08841029,119610.0,119600.0,1e-08]
[1753658969777,8.08841419,119610.0,119600.0,1e-08]
[1753658970382,8.10634793,119610.0,119600.0,1e-08]
[1753658970611,3.10634866,119610.0,119600.0,1e-08]
[1753658970836,8.10634866,119610.0,119600.0,1e-08]
[1753658971775,7.35088485,119610.0,119600.0,1e-08]
[1753658971992,7.32991111,119610.0,119600.0,1e-08]
[1753658972228,5.83359082,119610.0,119600.0,0.12784043]
[1753658972456,5.80963082,119610.0,119600.0,0.12784043]
[1753658972684,5.55196816,119610.0,119600.0,0.12784043]
[1753658972910,0.55196816,119610.0,119600.0,0.12784043]
[1753658973134,0.67647579,119610.0,119600.0,0.29506451]
[1753658973375,0.53201679,119610.0,119600.0,0.29506451]
[1753658973604,0.99889679,119610.0,119600.0,0.29506451]
[1753658973810,0.99689679,119610.0,119600.0,0.29506451]
[1753658974027,0.99789679,119610.0,119600.0,0.29506451]
[1753658974283,0.65789679,119610.0,119600.0,0.29606451]
[1753658974565,0.99689679,119610.0,119600.0,0.29606451]
[1753658974781,0.74507552,119610.0,119600.0,0.29606451]
[1753658975460,0.73671537,119610.0,119600.0,0.29506451]
[1753658975917,0.73671537,119610.0,119600.0,0.29706451]
[1753658976141,0.73671631,119610.0,119600.0,0.29706451]
[1753658977052,0.73671631,119610.0,119600.0,0.22941409]
[1753658977347,1.13671631,119610.0,119600.0,0.22941409]
[1753658978025,0.09226586,119610.0,119600.0,0.59043168]
[1753658978253,0.23007753,119610.0,119600.0,0.57371005]
[1753658978494,0.57007753,119610.0,119600.0,0.2544972]
[1753658978747,0.57007746,119610.0,119600.0,0.2544972]
[1753658978970,0.56171717,119610.0,119600.0,0.26285798]
[1753658979195,0.57843733,119610.0,119600.0,0.2544972]
[1753658979416,0.57007718,119610.0,119600.0,0.26285805]
[1753658979645,0.57843726,119610.0,119600.0,0.26285805]
[1753658979855,0.5533573,119610.0,119600.0,0.60715359]
[1753658980071,0.5533573,119610.0,119600.0,0.27121876]
[1753658980744,0.56171717,119610.0,119600.0,0.27121876]
[1753658980960,0.5533573,119610.0,119600.0,0.27121876]
[1753658982450,0.5533573,119610.0,119600.0,0.60715359]
[1753658983098,0.4244773,119610.0,119600.0,0.60715359]
[1753658983319,0.5533173,119610.0,119600.0,0.60715359]
[1753658985255,0.5533173,119610.0,119600.0,0.60515359]
[1753658985666,0.5533173,119610.0,119600.0,0.60615359]
[1753658985872,0.5533173,119610.0,119600.0,0.60515359]
[1753658986289,0.5533173,119610.0,119600.0,0.60815359]
[1753658988852,0.2133173,119610.0,119600.0,0.60815359]
[1753658989239,0.12884,119610.0,119600.0,0.60815359]
[1753658991157,0.47723918,119620.0,119610.0,0.22319075]
[1753658991374,0.56171648,119620.0,119610.0,0.22528075]
[1753658991596,0.56171648,119620.0,119610.0,0.25208075]
[1753658991790,0.57007572,119620.0,119610.0,0.25208075]
[1753658992780,0.57007572,119620.0,119610.0,0.25308075]
[1753658993195,0.57843503,119620.0,119610.0,0.23636052]
[1753658993397,0.58679448,119620.0,119610.0,0.25308089]
[1753658993818,0.58679448,119620.0,119610.0,0.24472074]
[1753658994308,0.58679448,119620.0,119610.0,0.23636052]
[1753658994539,0.58679448,119620.0,119610.0,0.24472081]
[1753658994895,0.59515407,119620.0,119610.0,0.24472081]
[1753658995787,0.59515407,119620.0,119610.0,0.24472088]
[1753658995992,0.59515407,119620.0,119610.0,0.25308117]
[1753658996207,0.595154,119620.0,119610.0,0.25308117]
[1753658996834,0.595154,119620.0,119610.0,0.26144139]
[1753658997038,0.59515449,119620.0,119610.0,0.25308117]
[1753658997241,0.59515449,119620.0,119610.0,0.24472088]
[1753658997628,0.59515498,119620.0,119610.0,0.23636052]
[1753658997941,0.58679525,119620.0,119610.0,0.24472088]
[1753658998170,0.58679518,119620.0,119610.0,0.25308117]
[1753658998394,0.73727268,119620.0,119610.0,0.22800009]
[1753658998615,1.10013751,119620.0,119610.0,0.0319]
[1753658998837,1.10315751,119620.0,119610.0,0.0319]
[1753658999060,1.10315751,119620.0,119610.0,0.001]
[1753658999284,1.11965751,119620.0,119610.0,0.001]
[1753658999690,1.51965751,119620.0,119610.0,0.001]
[1753659000200,1.11965751,119620.0,119610.0,0.001]
[1753659000406,1.10315751,119620.0,119610.0,0.001]
[1753659000826,1.10315751,119620.0,119610.0,0.0169]
[1753659004739,1.10315751,119620.0,119610.0,0.18411009]
[1753659004978,0.76722268,119620.0,119610.0,0.18411009]
[1753659005206,1.11094039,119620.0,119610.0,0.18411009]
[1753659005412,0.75341529,119620.0,119610.0,0.22956009]
[1753659005835,0.58621917,119620.0,119610.0,0.22956009]
[1753659006056,0.75341529,119620.0,119610.0,0.22956009]
[1753659007350,1.15538773,119620.0,119610.0,0.22956009]
[1753659007589,1.14702814,119620.0,119610.0,0.22956009]
[1753659008632,1.13866848,119620.0,119610.0,0.22956009]
[1753659009503,1.13866848,119620.0,119610.0,0.22645009]
[1753659010558,1.13088316,119620.0,119610.0,0.22645009]
[1753659010773,1.46624816,119620.0,119610.0,0.22645009]
[1753659011203,1.46624816,119620.0,119610.0,0.22440009]
[1753659013403,1.46624816,119620.0,119610.0,0.20890009]
[1753659013622,1.46625049,119620.0,119610.0,0.20890009]
[1753659013847,1.49121049,119620.0,119610.0,0.0169]
[1753659014097,1.49423049,119620.0,119610.0,0.0169]
[1753659015686,1.48643826,119620.0,119610.0,0.0169]
[1753659016149,1.15050343,119620.0,119610.0,0.0169]
[1753659016366,1.48643826,119620.0,119610.0,0.18411009]
[1753659016579,1.48341826,119620.0,119610.0,0.20890009]
[1753659017012,1.14748343,119620.0,119610.0,0.20890009]
[1753659017233,1.45845826,119620.0,119610.0,0.20890009]
[1753659017669,1.46625261,119620.0,119610.0,0.20890009]
[1753659018378,1.45845826,119620.0,119610.0,0.20890009]
[1753659019475,1.46625372,119620.0,119610.0,0.20890009]
[1753659019677,1.46625372,119620.0,119610.0,0.04169]
[1753659020407,1.45845826,119620.0,119610.0,0.04169]
[1753659020837,1.46625427,119620.0,119610.0,0.04169]
[1753659021901,1.06625427,119620.0,119610.0,0.04169]
[1753659022301,1.09121427,119620.0,119610.0,0.04169]
[1753659022952,1.09121427,119620.0,119610.0,0.0169]
[1753659023382,1.09423427,119620.0,119610.0,0.0169]
[1753659024027,1.09423605,119620.0,119610.0,0.0169]
[1753659024276,1.09423605,119620.0,119610.0,0.001]
[1753659025152,1.09423605,119620.0,119610.0,0.02557]
[1753659026222,1.09423605,119620.0,119610.0,0.001]
[1753659026946,1.09423889,119620.0,119610.0,0.001]
[1753659027361,1.09424051,119620.0,119610.0,0.001]
[1753659027678,1.09424051,119620.0,119610.0,0.02557]
[1753659027904,1.09122051,119620.0,119610.0,0.19278009]
[1753659028127,0.73032568,119620.0,119610.0,0.21146009]
[1753659028787,1.13032568,119620.0,119610.0,0.21449009]
[1753659029204,1.13088309,119620.0,119610.0,0.21449009]
[1753659029462,0.73088309,119620.0,119610.0,0.23109009]
[1753659029651,0.72891309,119620.0,119610.0,0.23109009]
[1753659030309,0.73094309,119620.0,119610.0,0.23109009]
[1753659033241,1.13094309,119620.0,119610.0,0.23109009]
[1753659036570,1.13094309,119620.0,119610.0,0.21449009]
[1753659036784,1.46687792,119620.0,119610.0,0.04425]
[1753659036997,1.13094309,119620.0,119610.0,0.04425]
[1753659037197,1.46687792,119620.0,119610.0,0.21146009]
[1753659037669,1.46687792,119620.0,119610.0,0.04425]
[1753659038127,1.49119792,119620.0,119610.0,0.02557]
[1753659038373,1.49413792,119620.0,119610.0,0.001]
[1753659042634,1.12258343,119620.0,119610.0,0.21016009]
[1753659042846,1.13727254,119620.0,119610.0,0.22819009]
[1753659043068,1.14563234,119620.0,119610.0,0.22819009]
[1753659046880,1.14766234,119620.0,119610.0,0.22819009]
[1753659047540,0.74766234,119620.0,119610.0,0.22819009]
[1753659047756,0.73930289,119620.0,119610.0,0.22819009]
[1753659048414,0.73930289,119620.0,119610.0,0.21319009]